{"text_format":"1","workbook":"xlsx","n_sheets":5,"sheets":["نموذج جرد السيارات","المبيعات","الانتاج","لي سانو اسود","لي هيتاشي اسود"],"not_rendered":{"charts":0,"images":1,"macros":1,"external_links":0,"defined_names":10,"comments":0,"pivot_tables":0},"unopened":[],"bounds":{"document_bytes":16777216,"sheet_cells":100000,"rows_first":2000,"rows_last":500,"rows_between":2000,"halvings":0,"cell_chars":16384,"cell_head_chars":4096},"cells_cut":0,"cells_raw":0,"read":"whole","date_system":"1900"}

{"sheet":"نموذج جرد السيارات","index":0,"n_rows":72,"n_cols":59,"rows_kept":72,"cut":false,"hidden":false,"merged":[[5,7,5,8],[5,11,6,12],[5,13,6,13],[5,22,5,23],[5,1,6,1],[5,14,6,14],[0,0,2,12],[0,13,2,25],[3,0,4,4],[3,9,4,12],[3,13,4,17],[3,18,4,21],[3,22,4,25],[5,0,6,0],[5,2,6,2],[5,3,6,3],[5,4,6,4],[5,5,5,6],[5,9,6,10],[3,5,4,6],[3,7,4,8],[9,11,9,12],[9,24,9,25],[10,11,10,12],[10,24,10,25],[11,11,11,12],[11,24,11,25],[5,24,6,25],[7,11,7,12],[7,24,7,25],[8,11,8,12],[8,24,8,25],[5,16,6,16],[5,17,6,17],[5,18,6,18],[5,19,6,19],[5,20,5,21],[5,15,6,15],[15,11,15,12],[15,24,15,25],[16,11,16,12],[16,24,16,25],[17,11,17,12],[17,24,17,25],[12,11,12,12],[12,24,12,25],[13,11,13,12],[13,24,13,25],[14,11,14,12],[14,24,14,25],[22,24,22,25],[23,11,23,12],[23,24,23,25],[18,11,18,12],[18,24,18,25],[19,11,19,12],[19,24,19,25],[20,11,20,12],[20,24,20,25],[7,9,7,10],[8,9,8,10],[9,9,9,10],[30,11,30,12],[30,24,30,25],[31,11,31,12],[31,24,31,25],[27,11,27,12],[27,24,27,25],[28,11,28,12],[28,24,28,25],[29,11,29,12],[29,24,29,25],[24,11,24,12],[24,24,24,25],[25,11,25,12],[25,24,25,25],[26,11,26,12],[26,24,26,25],[21,11,21,12],[21,24,21,25],[22,11,22,12],[30,9,30,10],[31,9,31,10],[25,9,25,10],[26,9,26,10],[27,9,27,10],[28,9,28,10],[29,9,29,10],[20,9,20,10],[21,9,21,10],[22,9,22,10],[23,9,23,10],[24,9,24,10],[15,9,15,10],[16,9,16,10],[17,9,17,10],[18,9,18,10],[19,9,19,10],[10,9,10,10],[11,9,11,10],[12,9,12,10],[13,9,13,10],[14,9,14,10]]}
[null,null,null,null,null,null,null,null,null,null,null,null,null,null,null,null,null,null,null,null,null,null,null,null,null,null,null,"التاريخ","رقم السند","اسم العميل",null,null,null,null,null,null,null,null,null,null,null,null,null,null,null,null,null,null,null,null,null,null,null,null,"لي","عصا","فرشة","غيار","طعام"]
[null,null,null,null,null,null,null,null,null,null,null,null,null,null,null,null,null,null,null,null,null,null,null,null,null,null,null,"2024-01-30","80","عصام احمد",81,null,null,null,null,null,null,null,null,null,null,null,null,null,null,null,null,null,null,null,null,null,null,null,"لي سانو اسود","عصا سانو اسود","فرشة سانو اسود","جاك خلاط عادي HP- 01","ملعقة اسود HP  المصنع"]
[null,null,null,null,null,null,null,null,null,null,null,null,null,null,null,null,null,null,null,null,null,null,null,null,null,null,null,"2024-01-31","80","عصام احمد",1,null,null,null,null,null,null,null,null,null,null,null,null,null,null,null,null,null,null,null,null,null,null,null,"لي هيتاشي اسود","عصا هيتاشي اسود","فرشة هيتاشي اسود","جاك خلاط أبو لمبة HP- 02","ملعقة ابيض HP  المصنع"]
["عصام احمد",null,null,null,null,"80",null,"00",null,{"$f":"TODAY()","v":"2024-02-03"},null,null,null,"الإنتاج",null,null,null,null,"0002",null,null,null,{"$f":"TODAY()","v":"2024-02-03"},null,null,null,null,"2024-01-31","80","عصام احمد",null,null,null,null,null,null,null,null,null,null,null,null,null,null,null,null,null,null,null,null,null,null,null,null,"لي ناشونال اسود","عصا ناشونال اسود","فرشة ناشونال اسود","جاك خلاط HP- 06","ملعقة شفاف HP  المصنع"]
[null,null,null,null,null,null,null,null,null,null,null,null,null,null,null,null,null,null,null,null,null,null,null,null,null,null,null,"2024-01-31","80","عصام احمد",null,null,null,null,null,null,null,null,null,null,null,null,null,null,null,null,null,null,null,null,null,null,null,null,"لي HP اسود","عصا HP اسود","فرشة HP اسود","جاك خلاط HP- 06A","سكين اسود HP  المصنع"]
["م","النوع","اسم الصنف","كرتون","حبة","الإجمالي",null,"تالف",null,"ملاحظات",null,"الرصيد",null,"م","النوع","اسم الصنف","كرتون","كرتون","حبة","حبة","الإجمالي",null,"تالف",null,"ملاحظات",null,null,"2024-01-31","80","عصام احمد",null,null,null,null,null,null,null,null,null,null,null,null,null,null,null,null,null,null,null,null,null,null,null,null,"لي LG اسود","عصا LG اسود","فرشة LG اسود كبير","جاك خلاط  HP- 08","سكين ابيض HP  المصنع"]
[null,null,null,null,null,"كرتون","حبة","كرتون","حبة",null,null,null,null,null,null,null,null,null,null,null,"كرتون","حبة","كرتون","حبة",null,null,null,"2024-01-31","80","عصام احمد",null,null,null,null,null,null,null,null,null,null,null,null,null,null,null,null,null,null,null,null,null,null,null,null,"لي اكرونا اسود","عصا اكرونا اسود","فرشة LG استيل VB-01","جاك خلاط  HP- 56B","سكين شفاف HP  المصنع"]
[1,"لي","لي سانو اسود",1,2,1,2,2,2,null,null,null,null,26,null,null,null,null,null,null,null,null,null,null,null,null,null,"2024-01-31","80","عصام احمد",null,null,null,null,null,null,null,null,null,null,null,null,null,null,null,null,null,null,null,null,null,null,null,null,"لي بانسونيك 1 اسود","عصا بانسونيك 1 اسود","فرشة LG استيلVB-06","جاك خلاط  HP- 60B","شوكة اسود HP  المصنع"]
[2,"لي","لي هيتاشي اسود",1,3,1,3,1,1,null,null,null,null,27,null,null,null,null,null,null,null,null,null,null,null,null,null,null,null,null,null,null,null,null,null,null,null,null,null,null,null,null,null,null,null,null,null,null,null,null,null,null,null,null,"لي بانسونيك 2 اسود","عصا بانسونيك 2 اسود","فرشة ملتي اسود","جاك خلاط  HP- 019","شوكة ابيض HP  المصنع"]
[3,null,null,null,null,null,null,null,null,null,null,null,null,28,null,null,null,null,null,null,null,null,null,null,null,null,null,null,null,null,null,null,null,null,null,null,null,null,null,null,null,null,null,null,null,null,null,null,null,null,null,null,null,null,"لي بانسنيك 3 اسود","عصا بانسنيك 3 اسود","فرشة اكوفاك سامسونج استيل VB-09","جاك خلاط  HP- 030","شوكة شفافHP  المصنع"]
[4,null,null,null,null,null,null,null,null,null,null,null,null,29,null,null,null,null,null,null,null,null,null,null,null,null,null,null,null,null,null,null,null,null,null,null,null,null,null,null,null,null,null,null,null,null,null,null,null,null,null,null,null,null,"لي سامسونج 1 اسود","عصا سامسونج 1 اسود","فرشة اكرونا اسود","جاك خلاط  HP- 035","ملعقة ايسكريم اسود HP المصنع"]
[5,null,null,null,null,null,null,null,null,null,null,null,null,30,null,null,null,null,null,null,null,null,null,null,null,null,null,null,null,null,null,null,null,null,null,null,null,null,null,null,null,null,null,null,null,null,null,null,null,null,null,null,null,null,"لي سامسونج 2 اسود","عصا سامسونج 2 اسود","فرشة سانيو صيني VB-05","جاك خلاط  BA - 36B","ملعقة اسود HP بدون تغليف"]
[6,null,null,null,null,null,null,null,null,null,null,null,null,31,null,null,null,null,null,null,null,null,null,null,null,null,null,null,null,null,null,null,null,null,null,null,null,null,null,null,null,null,null,null,null,null,null,null,null,null,null,null,null,null,"لي اكوفاك اسود","عصا اكوفاك اسود","فرشة هيتاشي وناشونال صيني VB-09","جاك خلاط كينود  BA- 38B","ملعقة اابيض HP بدون تغليف"]
[7,null,null,null,null,null,null,null,null,null,null,null,null,32,null,null,null,null,null,null,null,null,null,null,null,null,null,null,null,null,null,null,null,null,null,null,null,null,null,null,null,null,null,null,null,null,null,null,null,null,null,null,null,null,"لي كينود اسود","عصا كينود اسود","فرشة سانيو استيل بعجل VB-01SM","جاك خلاط  HP- 040","ملعقة اشفاف HP بدون تغليف"]
[8,null,null,null,null,null,null,null,null,null,null,null,null,33,null,null,null,null,null,null,null,null,null,null,null,null,null,null,null,null,null,null,null,null,null,null,null,null,null,null,null,null,null,null,null,null,null,null,null,null,null,null,null,null,"لي LGL اسود","عصا سانو ابيض","فرشة هيتاشي وناشونال استيل VB-01 NM","جاك خلاط  BA - 42B","ملعقة ايسكريم اسود HP بدون تغليف"]
[9,null,null,null,null,null,null,null,null,null,null,null,null,34,null,null,null,null,null,null,null,null,null,null,null,null,null,null,null,null,null,null,null,null,null,null,null,null,null,null,null,null,null,null,null,null,null,null,null,null,null,null,null,null,"لي بيسال اسود","عصا بانسونيك الوكالة","فرشة هيتاشي استيل ابيض","جاك زجاج سانيو  HP- 104","ملعقة ايسكريم بني HP بدون تغليف"]
[10,null,null,null,null,null,null,null,null,null,null,null,null,35,null,null,null,null,null,null,null,null,null,null,null,null,null,null,null,null,null,null,null,null,null,null,null,null,null,null,null,null,null,null,null,null,null,null,null,null,null,null,null,null,"لي سانو ابيض","عصا سانيو استيل","فرشة بانسونيك اسود","جاك زجاج ناشونال  HP- 100","ملعقة ايس كريم اخضر HP بدون تغليف"]
[11,null,null,null,null,null,null,null,null,null,null,null,null,36,null,null,null,null,null,null,null,null,null,null,null,null,null,null,null,null,null,null,null,null,null,null,null,null,null,null,null,null,null,null,null,null,null,null,null,null,null,null,null,null,"لي HP ابيض","عصا هيتاشي استيل","فرشة LG اسود","جاك زجاج ناشونال  HP- 105","ملعقة ايس كريم ازرق HP بدون تغليف"]
[12,null,null,null,null,null,null,null,null,null,null,null,null,37,null,null,null,null,null,null,null,null,null,null,null,null,null,null,null,null,null,null,null,null,null,null,null,null,null,null,null,null,null,null,null,null,null,null,null,null,null,null,null,null,"لي سامسونج 2 ابيض","عصا هيتاشي وناشونال استيل VA-01 NST","فرشة سامسونج اسود","جاك خلاط بروان زجاج G117P","سكين تقطيع حلاوة"]
[13,null,null,null,null,null,null,null,null,null,null,null,null,38,null,null,null,null,null,null,null,null,null,null,null,null,null,null,null,null,null,null,null,null,null,null,null,null,null,null,null,null,null,null,null,null,null,null,null,null,null,null,null,null,"لي سانو اسود SP","عصا سانيو صيني","فرشة اكوفاك اسود","حوض بصل HP- 09Bبسكين"]
[14,null,null,null,null,null,null,null,null,null,null,null,null,39,null,null,null,null,null,null,null,null,null,null,null,null,null,null,null,null,null,null,null,null,null,null,null,null,null,null,null,null,null,null,null,null,null,null,null,null,null,null,null,null,"لي هيتاشي اسود SP","عصا هيتاشي صيني VA-3N","فرشة كينود اسود","حوض بصل HP- 09Aبدون سكين"]
[15,null,null,null,null,null,null,null,null,null,null,null,null,40,null,null,null,null,null,null,null,null,null,null,null,null,null,null,null,null,null,null,null,null,null,null,null,null,null,null,null,null,null,null,null,null,null,null,null,null,null,null,null,null,"لي ناشونال اسود SP","عصا LG استيل VA-01","فرشة LG استيل ابيض","حوض بصل HP- 012B بسكين"]
[16,null,null,null,null,null,null,null,null,null,null,null,null,41,null,null,null,null,null,null,null,null,null,null,null,null,null,null,null,null,null,null,null,null,null,null,null,null,null,null,null,null,null,null,null,null,null,null,null,null,null,null,null,null,"لي HP اسود SP",null,"فرشة سانو ابيض","حوض بصل كينود  HP- 014B بسكين"]
[17,null,null,null,null,null,null,null,null,null,null,null,null,42,null,null,null,null,null,null,null,null,null,null,null,null,null,null,null,null,null,null,null,null,null,null,null,null,null,null,null,null,null,null,null,null,null,null,null,null,null,null,null,null,"لي بانسونيك 1 اسود SP",null,null,"حوض بصل HP- 014A بدون سكين"]
[18,null,null,null,null,null,null,null,null,null,null,null,null,43,null,null,null,null,null,null,null,null,null,null,null,null,null,null,null,null,null,null,null,null,null,null,null,null,null,null,null,null,null,null,null,null,null,null,null,null,null,null,null,null,"لي بانسونيك 2 اسود SP",null,null,"حوض بصل HP- 012A بدون سكين"]
[19,null,null,null,null,null,null,null,null,null,null,null,null,44,null,null,null,null,null,null,null,null,null,null,null,null,null,null,null,null,null,null,null,null,null,null,null,null,null,null,null,null,null,null,null,null,null,null,null,null,null,null,null,null,"لي بانسونيك 3 اسود SP",null,null,"حوض بصل HP- 21B"]
[20,null,null,null,null,null,null,null,null,null,null,null,null,45,null,null,null,null,null,null,null,null,null,null,null,null,null,null,null,null,null,null,null,null,null,null,null,null,null,null,null,null,null,null,null,null,null,null,null,null,null,null,null,null,"لي سامسونج 1 اسود SP",null,null,"حوض بصل HP- 22B"]
[21,null,null,null,null,null,null,null,null,null,null,null,null,46,null,null,null,null,null,null,null,null,null,null,null,null,null,null,null,null,null,null,null,null,null,null,null,null,null,null,null,null,null,null,null,null,null,null,null,null,null,null,null,null,"لي سامسونج 2 اسود SP",null,null,"قاعدة سانيو كاملة BD05"]
[22,null,null,null,null,null,null,null,null,null,null,null,null,47,null,null,null,null,null,null,null,null,null,null,null,null,null,null,null,null,null,null,null,null,null,null,null,null,null,null,null,null,null,null,null,null,null,null,null,null,null,null,null,null,"لي اكرونا اسود SP",null,null,"قاعدة سانيو كاملة بمسمارين BD05A"]
[23,null,null,null,null,null,null,null,null,null,null,null,null,48,null,null,null,null,null,null,null,null,null,null,null,null,null,null,null,null,null,null,null,null,null,null,null,null,null,null,null,null,null,null,null,null,null,null,null,null,null,null,null,null,"لي كينود اسود SP",null,null,"قاعدة ناشونال كاملة BD01"]
[24,null,null,null,null,null,null,null,null,null,null,null,null,49,null,null,null,null,null,null,null,null,null,null,null,null,null,null,null,null,null,null,null,null,null,null,null,null,null,null,null,null,null,null,null,null,null,null,null,null,null,null,null,null,"لي اكوفاك اسود SP",null,null,"قاعدة ناشونال كاملة BD04"]
[25,null,null,null,null,null,null,null,null,null,null,null,null,50,null,null,null,null,null,null,null,null,null,null,null,null,null,null,null,null,null,null,null,null,null,null,null,null,null,null,null,null,null,null,null,null,null,null,null,null,null,null,null,null,null,null,null,"قاعدة كينود كاملة HP- 19"]
[null,null,null,null,null,null,null,null,null,null,null,null,null,null,null,null,null,null,null,null,null,null,null,null,null,null,null,null,null,null,null,null,null,null,null,null,null,null,null,null,null,null,null,null,null,null,null,null,null,null,null,null,null,null,null,null,null,"قاعدة خلاط HP-2000"]
[null,null,"توقيع المستلم /",null,null,null,null,null,null,null,"اعتماد ",null,null,null,null,"توقيع المستلم /",null,null,null,null,null,null,null,"اعتماد ",null,null,null,null,null,null,null,null,null,null,null,null,null,null,null,null,null,null,null,null,null,null,null,null,null,null,null,null,null,null,null,null,null,"عظمة جاك خلاط PG010 - 01"]
[null,null,null,null,null,null,null,null,null,null,null,null,null,null,null,null,null,null,null,null,null,null,null,null,null,null,null,null,null,null,null,null,null,null,null,null,null,null,null,null,null,null,null,null,null,null,null,null,null,null,null,null,null,null,null,null,null,"ربلة براون"]
[null,null,null,null,null,null,null,null,null,null,null,null,null,null,null,null,null,null,null,null,null,null,null,null,null,null,null,null,null,null,null,null,null,null,null,null,null,null,null,null,null,null,null,null,null,null,null,null,null,null,null,null,null,null,null,null,null,"سكين بصل HP- 17"]
[null,null,null,null,null,null,null,null,null,null,null,null,null,null,null,null,null,null,null,null,null,null,null,null,null,null,null,null,null,null,null,null,null,null,null,null,null,null,null,null,null,null,null,null,null,null,null,null,null,null,null,null,null,null,null,null,null,"سكين بصل HP- 17A"]
[null,null,null,null,null,null,null,null,null,null,null,null,null,null,null,null,null,null,null,null,null,null,null,null,null,null,null,null,null,null,null,null,null,null,null,null,null,null,null,null,null,null,null,null,null,null,null,null,null,null,null,null,null,null,null,null,null,"سكين بصل HP-12"]
[null,null,null,null,null,null,null,null,null,null,null,null,null,null,null,null,null,null,null,null,null,null,null,null,null,null,null,null,null,null,null,null,null,null,null,null,null,null,null,null,null,null,null,null,null,null,null,null,null,null,null,null,null,null,null,null,null,"سكين كينود HP- 60C"]
[null,null,null,null,null,null,null,null,null,null,null,null,null,null,null,null,null,null,null,null,null,null,null,null,null,null,null,null,null,null,null,null,null,null,null,null,null,null,null,null,null,null,null,null,null,null,null,null,null,null,null,null,null,null,null,null,null,"سكين بصل HP-61"]
[null,null,null,null,null,null,null,null,null,null,null,null,null,null,null,null,null,null,null,null,null,null,null,null,null,null,null,null,null,null,null,null,null,null,null,null,null,null,null,null,null,null,null,null,null,null,null,null,null,null,null,null,null,null,null,null,null,"سكين بصل مونيلكس HP-17C"]
[null,null,null,null,null,null,null,null,null,null,null,null,null,null,null,null,null,null,null,null,null,null,null,null,null,null,null,null,null,null,null,null,null,null,null,null,null,null,null,null,null,null,null,null,null,null,null,null,null,null,null,null,null,null,null,null,null,"راس طاحونة HP- 01"]
[null,null,null,null,null,null,null,null,null,null,null,null,null,null,null,null,null,null,null,null,null,null,null,null,null,null,null,null,null,null,null,null,null,null,null,null,null,null,null,null,null,null,null,null,null,null,null,null,null,null,null,null,null,null,null,null,null,"راس طاحونة HP- 02"]
[null,null,null,null,null,null,null,null,null,null,null,null,null,null,null,null,null,null,null,null,null,null,null,null,null,null,null,null,null,null,null,null,null,null,null,null,null,null,null,null,null,null,null,null,null,null,null,null,null,null,null,null,null,null,null,null,null,"راس طاحونة HP- 04"]
[null,null,null,null,null,null,null,null,null,null,null,null,null,null,null,null,null,null,null,null,null,null,null,null,null,null,null,null,null,null,null,null,null,null,null,null,null,null,null,null,null,null,null,null,null,null,null,null,null,null,null,null,null,null,null,null,null,"راس طاحونة HP- 05"]
[null,null,null,null,null,null,null,null,null,null,null,null,null,null,null,null,null,null,null,null,null,null,null,null,null,null,null,null,null,null,null,null,null,null,null,null,null,null,null,null,null,null,null,null,null,null,null,null,null,null,null,null,null,null,null,null,null,"راس طاحونة HP- 09"]
[null,null,null,null,null,null,null,null,null,null,null,null,null,null,null,null,null,null,null,null,null,null,null,null,null,null,null,null,null,null,null,null,null,null,null,null,null,null,null,null,null,null,null,null,null,null,null,null,null,null,null,null,null,null,null,null,null,"راس طاحونة جاك 35 BB-11"]
[null,null,null,null,null,null,null,null,null,null,null,null,null,null,null,null,null,null,null,null,null,null,null,null,null,null,null,null,null,null,null,null,null,null,null,null,null,null,null,null,null,null,null,null,null,null,null,null,null,null,null,null,null,null,null,null,null,"غطاء جاك زجاج سانيو اسود"]
[null,null,null,null,null,null,null,null,null,null,null,null,null,null,null,null,null,null,null,null,null,null,null,null,null,null,null,null,null,null,null,null,null,null,null,null,null,null,null,null,null,null,null,null,null,null,null,null,null,null,null,null,null,null,null,null,null,"غطاء جاك زجاج ناشونال ابيض"]
[null,null,null,null,null,null,null,null,null,null,null,null,null,null,null,null,null,null,null,null,null,null,null,null,null,null,null,null,null,null,null,null,null,null,null,null,null,null,null,null,null,null,null,null,null,null,null,null,null,null,null,null,null,null,null,null,null,"غطاء طاحونةBJ003"]
[null,null,null,null,null,null,null,null,null,null,null,null,null,null,null,null,null,null,null,null,null,null,null,null,null,null,null,null,null,null,null,null,null,null,null,null,null,null,null,null,null,null,null,null,null,null,null,null,null,null,null,null,null,null,null,null,null,"غطاء طاحونةBJ004"]
[null,null,null,null,null,null,null,null,null,null,null,null,null,null,null,null,null,null,null,null,null,null,null,null,null,null,null,null,null,null,null,null,null,null,null,null,null,null,null,null,null,null,null,null,null,null,null,null,null,null,null,null,null,null,null,null,null,"غطاء طاحونةBJ025"]
[null,null,null,null,null,null,null,null,null,null,null,null,null,null,null,null,null,null,null,null,null,null,null,null,null,null,null,null,null,null,null,null,null,null,null,null,null,null,null,null,null,null,null,null,null,null,null,null,null,null,null,null,null,null,null,null,null,"فلتر مكنسة كهربائية VD- 17A"]
[null,null,null,null,null,null,null,null,null,null,null,null,null,null,null,null,null,null,null,null,null,null,null,null,null,null,null,null,null,null,null,null,null,null,null,null,null,null,null,null,null,null,null,null,null,null,null,null,null,null,null,null,null,null,null,null,null,"فلتر مكنسة كهربائية VD- 17B"]
[null,null,null,null,null,null,null,null,null,null,null,null,null,null,null,null,null,null,null,null,null,null,null,null,null,null,null,null,null,null,null,null,null,null,null,null,null,null,null,null,null,null,null,null,null,null,null,null,null,null,null,null,null,null,null,null,null,"مجموعة فرش شباك"]
[null,null,null,null,null,null,null,null,null,null,null,null,null,null,null,null,null,null,null,null,null,null,null,null,null,null,null,null,null,null,null,null,null,null,null,null,null,null,null,null,null,null,null,null,null,null,null,null,null,null,null,null,null,null,null,null,null,"حوض بصل09بدون سكين"]
[null,null,null,null,null,null,null,null,null,null,null,null,null,null,null,null,null,null,null,null,null,null,null,null,null,null,null,null,null,null,null,null,null,null,null,null,null,null,null,null,null,null,null,null,null,null,null,null,null,null,null,null,null,null,null,null,null,"حوض بصل14بدون سكين"]
[null,null,null,null,null,null,null,null,null,null,null,null,null,null,null,null,null,null,null,null,null,null,null,null,null,null,null,null,null,null,null,null,null,null,null,null,null,null,null,null,null,null,null,null,null,null,null,null,null,null,null,null,null,null,null,null,null,"غطاس 20 وات 220 فولت"]
[null,null,null,null,null,null,null,null,null,null,null,null,null,null,null,null,null,null,null,null,null,null,null,null,null,null,null,null,null,null,null,null,null,null,null,null,null,null,null,null,null,null,null,null,null,null,null,null,null,null,null,null,null,null,null,null,null,"غطاس جنرال  50 وات 220 فولت"]
[null,null,null,null,null,null,null,null,null,null,null,null,null,null,null,null,null,null,null,null,null,null,null,null,null,null,null,null,null,null,null,null,null,null,null,null,null,null,null,null,null,null,null,null,null,null,null,null,null,null,null,null,null,null,null,null,null,"غطاس جنرال هوم 130 وات 220 فولت"]
[null,null,null,null,null,null,null,null,null,null,null,null,null,null,null,null,null,null,null,null,null,null,null,null,null,null,null,null,null,null,null,null,null,null,null,null,null,null,null,null,null,null,null,null,null,null,null,null,null,null,null,null,null,null,null,null,null,"موتور خلاط موينلكس BM-13"]
[null,null,null,null,null,null,null,null,null,null,null,null,null,null,null,null,null,null,null,null,null,null,null,null,null,null,null,null,null,null,null,null,null,null,null,null,null,null,null,null,null,null,null,null,null,null,null,null,null,null,null,null,null,null,null,null,null,"موتور خلاط سانيو BM-10"]
[null,null,null,null,null,null,null,null,null,null,null,null,null,null,null,null,null,null,null,null,null,null,null,null,null,null,null,null,null,null,null,null,null,null,null,null,null,null,null,null,null,null,null,null,null,null,null,null,null,null,null,null,null,null,null,null,null,"موتور مكنسة 1400 واط BM-16"]
[null,null,null,null,null,null,null,null,null,null,null,null,null,null,null,null,null,null,null,null,null,null,null,null,null,null,null,null,null,null,null,null,null,null,null,null,null,null,null,null,null,null,null,null,null,null,null,null,null,null,null,null,null,null,null,null,null,"موتور مكنسة 1200 واط BM-580A"]
[null,null,null,null,null,null,null,null,null,null,null,null,null,null,null,null,null,null,null,null,null,null,null,null,null,null,null,null,null,null,null,null,null,null,null,null,null,null,null,null,null,null,null,null,null,null,null,null,null,null,null,null,null,null,null,null,null,"قلب مايكرويف MK-01"]
[null,null,null,null,null,null,null,null,null,null,null,null,null,null,null,null,null,null,null,null,null,null,null,null,null,null,null,null,null,null,null,null,null,null,null,null,null,null,null,null,null,null,null,null,null,null,null,null,null,null,null,null,null,null,null,null,null,"كفرات مكنسة VD-25"]
[null,null,null,null,null,null,null,null,null,null,null,null,null,null,null,null,null,null,null,null,null,null,null,null,null,null,null,null,null,null,null,null,null,null,null,null,null,null,null,null,null,null,null,null,null,null,null,null,null,null,null,null,null,null,null,null,null,"شبك مكنسة VD-18"]
[null,null,null,null,null,null,null,null,null,null,null,null,null,null,null,null,null,null,null,null,null,null,null,null,null,null,null,null,null,null,null,null,null,null,null,null,null,null,null,null,null,null,null,null,null,null,null,null,null,null,null,null,null,null,null,null,null,"ترس فرامة بصل BH-070"]
[null,null,null,null,null,null,null,null,null,null,null,null,null,null,null,null,null,null,null,null,null,null,null,null,null,null,null,null,null,null,null,null,null,null,null,null,null,null,null,null,null,null,null,null,null,null,null,null,null,null,null,null,null,null,null,null,null,"لي غسالة اتوماتيك تصريف مياه S"]
[null,null,null,null,null,null,null,null,null,null,null,null,null,null,null,null,null,null,null,null,null,null,null,null,null,null,null,null,null,null,null,null,null,null,null,null,null,null,null,null,null,null,null,null,null,null,null,null,null,null,null,null,null,null,null,null,null,"لي غسالة اتوماتيك تصريف مياه بكلبس S"]
[null,null,null,null,null,null,null,null,null,null,null,null,null,null,null,null,null,null,null,null,null,null,null,null,null,null,null,null,null,null,null,null,null,null,null,null,null,null,null,null,null,null,null,null,null,null,null,null,null,null,null,null,null,null,null,null,null,"لي غسالة اتوماتيك سحب مياه 2 متر A"]
[null,null,null,null,null,null,null,null,null,null,null,null,null,null,null,null,null,null,null,null,null,null,null,null,null,null,null,null,null,null,null,null,null,null,null,null,null,null,null,null,null,null,null,null,null,null,null,null,null,null,null,null,null,null,null,null,null,"لي غسالة اتوماتيك تصريف مياه عادي A"]

{"sheet":"المبيعات","index":1,"n_rows":9,"n_cols":10,"rows_kept":9,"cut":false,"hidden":false,"merged":[[0,0,0,12],[1,0,2,4],[1,5,2,8],[1,9,2,12],[6,0,7,4],[6,5,7,8],[6,9,7,12],[5,0,5,4],[5,5,5,8],[5,9,5,12],[3,0,4,4],[3,5,4,6],[3,7,4,8],[3,9,4,12],[8,0,9,4],[8,5,9,8],[8,9,9,12]]}
["المبيعات "]
["الاسم",null,null,null,null,"الرقم",null,null,null,"التاريخ"]
[]
[]
[]
[]
["السيد إبراهيم",null,null,null,null,"0025",null,null,null,"2024-01-07"]
[]
["عصام احمد",null,null,null,null,"0025",null,null,null,"2024-01-07"]

{"sheet":"الانتاج","index":2,"n_rows":6,"n_cols":10,"rows_kept":6,"cut":false,"hidden":false,"merged":[[5,0,6,4],[5,5,6,8],[5,9,6,12],[0,0,0,12],[1,0,2,4],[1,5,2,8],[1,9,2,12],[3,0,4,4],[3,5,4,8],[3,9,4,12]]}
["الإنتاج"]
["الاسم",null,null,null,null,"الرقم",null,null,null,"التاريخ"]
[]
[]
[]
["الإنتاج",null,null,null,null,"0001",null,null,null,"2024-01-14"]

{"sheet":"لي سانو اسود","index":3,"n_rows":400,"n_cols":8,"rows_kept":400,"cut":false,"hidden":false,"merged":[[0,7,1,7],[0,4,1,5],[0,6,1,6],[2,7,3,7],[2,0,3,0],[2,1,3,1],[2,2,2,3],[2,4,2,5],[2,6,3,6]]}
["لي سانو اسود",24,null,null,"الرصيد",null,{"$f":"G400","v":3},{"$f":"H400","v":6}]
[]
["التاريخ","العميل","الوارد",null,"الصادر",null,"الرصيد"]
[null,null,"كرتون","حبة","كرتون","حبة"]
["2024-02-03","لي سانو اسود",1,2,null,null,"0",0]
["2024-02-03","لي سانو اسود",1,2,null,null,{"$f":"(G5-E6+C6)+INT((H5-F6+D6)/$B$1)","v":1},{"$f":"MOD((H5-F6+D6),$B$1)","v":2}]
["2024-02-03","لي سانو اسود",1,2,null,null,{"$f":"(G6-E7+C7)+INT((H6-F7+D7)/$B$1)","v":2},{"$f":"MOD((H6-F7+D7),$B$1)","v":4}]
["2024-02-03","لي سانو اسود",1,2,null,null,3,6]
[null,null,null,null,null,null,3,6]
[null,null,null,null,null,null,3,6]
[null,null,null,null,null,null,3,6]
[null,null,null,null,null,null,3,6]
[null,null,null,null,null,null,3,6]
[null,null,null,null,null,null,3,6]
[null,null,null,null,null,null,3,6]
[null,null,null,null,null,null,3,6]
[null,null,null,null,null,null,3,6]
[null,null,null,null,null,null,3,6]
[null,null,null,null,null,null,3,6]
[null,null,null,null,null,null,3,6]
[null,null,null,null,null,null,3,6]
[null,null,null,null,null,null,3,6]
[null,null,null,null,null,null,3,6]
[null,null,null,null,null,null,3,6]
[null,null,null,null,null,null,3,6]
[null,null,null,null,null,null,3,6]
[null,null,null,null,null,null,3,6]
[null,null,null,null,null,null,3,6]
[null,null,null,null,null,null,3,6]
[null,null,null,null,null,null,3,6]
[null,null,null,null,null,null,3,6]
[null,null,null,null,null,null,3,6]
[null,null,null,null,null,null,3,6]
[null,null,null,null,null,null,3,6]
[null,null,null,null,null,null,3,6]
[null,null,null,null,null,null,3,6]
[null,null,null,null,null,null,3,6]
[null,null,null,null,null,null,3,6]
[null,null,null,null,null,null,3,6]
[null,null,null,null,null,null,3,6]
[null,null,null,null,null,null,3,6]
[null,null,null,null,null,null,3,6]
[null,null,null,null,null,null,3,6]
[null,null,null,null,null,null,3,6]
[null,null,null,null,null,null,3,6]
[null,null,null,null,null,null,3,6]
[null,null,null,null,null,null,3,6]
[null,null,null,null,null,null,3,6]
[null,null,null,null,null,null,3,6]
[null,null,null,null,null,null,3,6]
[null,null,null,null,null,null,3,6]
[null,null,null,null,null,null,3,6]
[null,null,null,null,null,null,3,6]
[null,null,null,null,null,null,3,6]
[null,null,null,null,null,null,3,6]
[null,null,null,null,null,null,3,6]
[null,null,null,null,null,null,3,6]
[null,null,null,null,null,null,3,6]
[null,null,null,null,null,null,3,6]
[null,null,null,null,null,null,3,6]
[null,null,null,null,null,null,3,6]
[null,null,null,null,null,null,3,6]
[null,null,null,null,null,null,3,6]
[null,null,null,null,null,null,3,6]
[null,null,null,null,null,null,3,6]
[null,null,null,null,null,null,3,6]
[null,null,null,null,null,null,3,6]
[null,null,null,null,null,null,3,6]
[null,null,null,null,null,null,3,6]
[null,null,null,null,null,null,3,6]
[null,null,null,null,null,null,{"$f":"(G70-E71+C71)+INT((H70-F71+D71)/$B$1)","v":3},{"$f":"MOD((H70-F71+D71),$B$1)","v":6}]
[null,null,null,null,null,null,3,6]
[null,null,null,null,null,null,3,6]
[null,null,null,null,null,null,3,6]
[null,null,null,null,null,null,3,6]
[null,null,null,null,null,null,3,6]
[null,null,null,null,null,null,3,6]
[null,null,null,null,null,null,3,6]
[null,null,null,null,null,null,3,6]
[null,null,null,null,null,null,3,6]
[null,null,null,null,null,null,3,6]
[null,null,null,null,null,null,3,6]
[null,null,null,null,null,null,3,6]
[null,null,null,null,null,null,3,6]
[null,null,null,null,null,null,3,6]
[null,null,null,null,null,null,3,6]
[null,null,null,null,null,null,3,6]
[null,null,null,null,null,null,3,6]
[null,null,null,null,null,null,3,6]
[null,null,null,null,null,null,3,6]
[null,null,null,null,null,null,3,6]
[null,null,null,null,null,null,3,6]
[null,null,null,null,null,null,3,6]
[null,null,null,null,null,null,3,6]
[null,null,null,null,null,null,3,6]
[null,null,null,null,null,null,3,6]
[null,null,null,null,null,null,3,6]
[null,null,null,null,null,null,3,6]
[null,null,null,null,null,null,3,6]
[null,null,null,null,null,null,3,6]
[null,null,null,null,null,null,3,6]
[null,null,null,null,null,null,3,6]
[null,null,null,null,null,null,3,6]
[null,null,null,null,null,null,3,6]
[null,null,null,null,null,null,3,6]
[null,null,null,null,null,null,3,6]
[null,null,null,null,null,null,3,6]
[null,null,null,null,null,null,3,6]
[null,null,null,null,null,null,3,6]
[null,null,null,null,null,null,3,6]
[null,null,null,null,null,null,3,6]
[null,null,null,null,null,null,3,6]
[null,null,null,null,null,null,3,6]
[null,null,null,null,null,null,3,6]
[null,null,null,null,null,null,3,6]
[null,null,null,null,null,null,3,6]
[null,null,null,null,null,null,3,6]
[null,null,null,null,null,null,3,6]
[null,null,null,null,null,null,3,6]
[null,null,null,null,null,null,3,6]
[null,null,null,null,null,null,3,6]
[null,null,null,null,null,null,3,6]
[null,null,null,null,null,null,3,6]
[null,null,null,null,null,null,3,6]
[null,null,null,null,null,null,3,6]
[null,null,null,null,null,null,3,6]
[null,null,null,null,null,null,3,6]
[null,null,null,null,null,null,3,6]
[null,null,null,null,null,null,3,6]
[null,null,null,null,null,null,3,6]
[null,null,null,null,null,null,3,6]
[null,null,null,null,null,null,3,6]
[null,null,null,null,null,null,3,6]
[null,null,null,null,null,null,3,6]
[null,null,null,null,null,null,{"$f":"(G134-E135+C135)+INT((H134-F135+D135)/$B$1)","v":3},{"$f":"MOD((H134-F135+D135),$B$1)","v":6}]
[null,null,null,null,null,null,3,6]
[null,null,null,null,null,null,3,6]
[null,null,null,null,null,null,3,6]
[null,null,null,null,null,null,3,6]
[null,null,null,null,null,null,3,6]
[null,null,null,null,null,null,3,6]
[null,null,null,null,null,null,3,6]
[null,null,null,null,null,null,3,6]
[null,null,null,null,null,null,3,6]
[null,null,null,null,null,null,3,6]
[null,null,null,null,null,null,3,6]
[null,null,null,null,null,null,3,6]
[null,null,null,null,null,null,3,6]
[null,null,null,null,null,null,3,6]
[null,null,null,null,null,null,3,6]
[null,null,null,null,null,null,3,6]
[null,null,null,null,null,null,3,6]
[null,null,null,null,null,null,3,6]
[null,null,null,null,null,null,3,6]
[null,null,null,null,null,null,3,6]
[null,null,null,null,null,null,3,6]
[null,null,null,null,null,null,3,6]
[null,null,null,null,null,null,3,6]
[null,null,null,null,null,null,3,6]
[null,null,null,null,null,null,3,6]
[null,null,null,null,null,null,3,6]
[null,null,null,null,null,null,3,6]
[null,null,null,null,null,null,3,6]
[null,null,null,null,null,null,3,6]
[null,null,null,null,null,null,3,6]
[null,null,null,null,null,null,3,6]
[null,null,null,null,null,null,3,6]
[null,null,null,null,null,null,3,6]
[null,null,null,null,null,null,3,6]
[null,null,null,null,null,null,3,6]
[null,null,null,null,null,null,3,6]
[null,null,null,null,null,null,3,6]
[null,null,null,null,null,null,3,6]
[null,null,null,null,null,null,3,6]
[null,null,null,null,null,null,3,6]
[null,null,null,null,null,null,3,6]
[null,null,null,null,null,null,3,6]
[null,null,null,null,null,null,3,6]
[null,null,null,null,null,null,3,6]
[null,null,null,null,null,null,3,6]
[null,null,null,null,null,null,3,6]
[null,null,null,null,null,null,3,6]
[null,null,null,null,null,null,3,6]
[null,null,null,null,null,null,3,6]
[null,null,null,null,null,null,3,6]
[null,null,null,null,null,null,3,6]
[null,null,null,null,null,null,3,6]
[null,null,null,null,null,null,3,6]
[null,null,null,null,null,null,3,6]
[null,null,null,null,null,null,3,6]
[null,null,null,null,null,null,3,6]
[null,null,null,null,null,null,3,6]
[null,null,null,null,null,null,3,6]
[null,null,null,null,null,null,3,6]
[null,null,null,null,null,null,3,6]
[null,null,null,null,null,null,3,6]
[null,null,null,null,null,null,3,6]
[null,null,null,null,null,null,3,6]
[null,null,null,null,null,null,{"$f":"(G198-E199+C199)+INT((H198-F199+D199)/$B$1)","v":3},{"$f":"MOD((H198-F199+D199),$B$1)","v":6}]
[null,null,null,null,null,null,3,6]
[null,null,null,null,null,null,3,6]
[null,null,null,null,null,null,3,6]
[null,null,null,null,null,null,3,6]
[null,null,null,null,null,null,3,6]
[null,null,null,null,null,null,3,6]
[null,null,null,null,null,null,3,6]
[null,null,null,null,null,null,3,6]
[null,null,null,null,null,null,3,6]
[null,null,null,null,null,null,3,6]
[null,null,null,null,null,null,3,6]
[null,null,null,null,null,null,3,6]
[null,null,null,null,null,null,3,6]
[null,null,null,null,null,null,3,6]
[null,null,null,null,null,null,3,6]
[null,null,null,null,null,null,3,6]
[null,null,null,null,null,null,3,6]
[null,null,null,null,null,null,3,6]
[null,null,null,null,null,null,3,6]
[null,null,null,null,null,null,3,6]
[null,null,null,null,null,null,3,6]
[null,null,null,null,null,null,3,6]
[null,null,null,null,null,null,3,6]
[null,null,null,null,null,null,3,6]
[null,null,null,null,null,null,3,6]
[null,null,null,null,null,null,3,6]
[null,null,null,null,null,null,3,6]
[null,null,null,null,null,null,3,6]
[null,null,null,null,null,null,3,6]
[null,null,null,null,null,null,3,6]
[null,null,null,null,null,null,3,6]
[null,null,null,null,null,null,3,6]
[null,null,null,null,null,null,3,6]
[null,null,null,null,null,null,3,6]
[null,null,null,null,null,null,3,6]
[null,null,null,null,null,null,3,6]
[null,null,null,null,null,null,3,6]
[null,null,null,null,null,null,3,6]
[null,null,null,null,null,null,3,6]
[null,null,null,null,null,null,3,6]
[null,null,null,null,null,null,3,6]
[null,null,null,null,null,null,3,6]
[null,null,null,null,null,null,3,6]
[null,null,null,null,null,null,3,6]
[null,null,null,null,null,null,3,6]
[null,null,null,null,null,null,3,6]
[null,null,null,null,null,null,3,6]
[null,null,null,null,null,null,3,6]
[null,null,null,null,null,null,3,6]
[null,null,null,null,null,null,3,6]
[null,null,null,null,null,null,3,6]
[null,null,null,null,null,null,3,6]
[null,null,null,null,null,null,3,6]
[null,null,null,null,null,null,3,6]
[null,null,null,null,null,null,3,6]
[null,null,null,null,null,null,3,6]
[null,null,null,null,null,null,3,6]
[null,null,null,null,null,null,3,6]
[null,null,null,null,null,null,3,6]
[null,null,null,null,null,null,3,6]
[null,null,null,null,null,null,3,6]
[null,null,null,null,null,null,3,6]
[null,null,null,null,null,null,3,6]
[null,null,null,null,null,null,{"$f":"(G262-E263+C263)+INT((H262-F263+D263)/$B$1)","v":3},{"$f":"MOD((H262-F263+D263),$B$1)","v":6}]
[null,null,null,null,null,null,3,6]
[null,null,null,null,null,null,3,6]
[null,null,null,null,null,null,3,6]
[null,null,null,null,null,null,3,6]
[null,null,null,null,null,null,3,6]
[null,null,null,null,null,null,3,6]
[null,null,null,null,null,null,3,6]
[null,null,null,null,null,null,3,6]
[null,null,null,null,null,null,3,6]
[null,null,null,null,null,null,3,6]
[null,null,null,null,null,null,3,6]
[null,null,null,null,null,null,3,6]
[null,null,null,null,null,null,3,6]
[null,null,null,null,null,null,3,6]
[null,null,null,null,null,null,3,6]
[null,null,null,null,null,null,3,6]
[null,null,null,null,null,null,3,6]
[null,null,null,null,null,null,3,6]
[null,null,null,null,null,null,3,6]
[null,null,null,null,null,null,3,6]
[null,null,null,null,null,null,3,6]
[null,null,null,null,null,null,3,6]
[null,null,null,null,null,null,3,6]
[null,null,null,null,null,null,3,6]
[null,null,null,null,null,null,3,6]
[null,null,null,null,null,null,3,6]
[null,null,null,null,null,null,3,6]
[null,null,null,null,null,null,3,6]
[null,null,null,null,null,null,3,6]
[null,null,null,null,null,null,3,6]
[null,null,null,null,null,null,3,6]
[null,null,null,null,null,null,3,6]
[null,null,null,null,null,null,3,6]
[null,null,null,null,null,null,3,6]
[null,null,null,null,null,null,3,6]
[null,null,null,null,null,null,3,6]
[null,null,null,null,null,null,3,6]
[null,null,null,null,null,null,3,6]
[null,null,null,null,null,null,3,6]
[null,null,null,null,null,null,3,6]
[null,null,null,null,null,null,3,6]
[null,null,null,null,null,null,3,6]
[null,null,null,null,null,null,3,6]
[null,null,null,null,null,null,3,6]
[null,null,null,null,null,null,3,6]
[null,null,null,null,null,null,3,6]
[null,null,null,null,null,null,3,6]
[null,null,null,null,null,null,3,6]
[null,null,null,null,null,null,3,6]
[null,null,null,null,null,null,3,6]
[null,null,null,null,null,null,3,6]
[null,null,null,null,null,null,3,6]
[null,null,null,null,null,null,3,6]
[null,null,null,null,null,null,3,6]
[null,null,null,null,null,null,3,6]
[null,null,null,null,null,null,3,6]
[null,null,null,null,null,null,3,6]
[null,null,null,null,null,null,3,6]
[null,null,null,null,null,null,3,6]
[null,null,null,null,null,null,3,6]
[null,null,null,null,null,null,3,6]
[null,null,null,null,null,null,3,6]
[null,null,null,null,null,null,3,6]
[null,null,null,null,null,null,{"$f":"(G326-E327+C327)+INT((H326-F327+D327)/$B$1)","v":3},{"$f":"MOD((H326-F327+D327),$B$1)","v":6}]
[null,null,null,null,null,null,3,6]
[null,null,null,null,null,null,3,6]
[null,null,null,null,null,null,3,6]
[null,null,null,null,null,null,3,6]
[null,null,null,null,null,null,3,6]
[null,null,null,null,null,null,3,6]
[null,null,null,null,null,null,3,6]
[null,null,null,null,null,null,3,6]
[null,null,null,null,null,null,3,6]
[null,null,null,null,null,null,3,6]
[null,null,null,null,null,null,3,6]
[null,null,null,null,null,null,3,6]
[null,null,null,null,null,null,3,6]
[null,null,null,null,null,null,3,6]
[null,null,null,null,null,null,3,6]
[null,null,null,null,null,null,3,6]
[null,null,null,null,null,null,3,6]
[null,null,null,null,null,null,3,6]
[null,null,null,null,null,null,3,6]
[null,null,null,null,null,null,3,6]
[null,null,null,null,null,null,3,6]
[null,null,null,null,null,null,3,6]
[null,null,null,null,null,null,3,6]
[null,null,null,null,null,null,3,6]
[null,null,null,null,null,null,3,6]
[null,null,null,null,null,null,3,6]
[null,null,null,null,null,null,3,6]
[null,null,null,null,null,null,3,6]
[null,null,null,null,null,null,3,6]
[null,null,null,null,null,null,3,6]
[null,null,null,null,null,null,3,6]
[null,null,null,null,null,null,3,6]
[null,null,null,null,null,null,3,6]
[null,null,null,null,null,null,3,6]
[null,null,null,null,null,null,3,6]
[null,null,null,null,null,null,3,6]
[null,null,null,null,null,null,3,6]
[null,null,null,null,null,null,3,6]
[null,null,null,null,null,null,3,6]
[null,null,null,null,null,null,3,6]
[null,null,null,null,null,null,3,6]
[null,null,null,null,null,null,3,6]
[null,null,null,null,null,null,3,6]
[null,null,null,null,null,null,3,6]
[null,null,null,null,null,null,3,6]
[null,null,null,null,null,null,3,6]
[null,null,null,null,null,null,3,6]
[null,null,null,null,null,null,3,6]
[null,null,null,null,null,null,3,6]
[null,null,null,null,null,null,3,6]
[null,null,null,null,null,null,3,6]
[null,null,null,null,null,null,3,6]
[null,null,null,null,null,null,3,6]
[null,null,null,null,null,null,3,6]
[null,null,null,null,null,null,3,6]
[null,null,null,null,null,null,3,6]
[null,null,null,null,null,null,3,6]
[null,null,null,null,null,null,3,6]
[null,null,null,null,null,null,3,6]
[null,null,null,null,null,null,3,6]
[null,null,null,null,null,null,3,6]
[null,null,null,null,null,null,3,6]
[null,null,null,null,null,null,3,6]
[null,null,null,null,null,null,{"$f":"(G390-E391+C391)+INT((H390-F391+D391)/$B$1)","v":3},{"$f":"MOD((H390-F391+D391),$B$1)","v":6}]
[null,null,null,null,null,null,3,6]
[null,null,null,null,null,null,3,6]
[null,null,null,null,null,null,3,6]
[null,null,null,null,null,null,3,6]
[null,null,null,null,null,null,3,6]
[null,null,null,null,null,null,3,6]
[null,null,null,null,null,null,3,6]
[null,null,null,null,null,null,3,6]
[null,null,null,null,null,null,3,6]

{"sheet":"لي هيتاشي اسود","index":4,"n_rows":400,"n_cols":8,"rows_kept":400,"cut":false,"hidden":false,"merged":[[0,4,1,5],[0,6,1,6],[0,7,1,7],[2,0,3,0],[2,1,3,1],[2,2,2,3],[2,4,2,5],[2,6,3,6],[2,7,3,7]]}
["لي سانو اسود",24,null,null,"الرصيد",null,{"$f":"G400","v":3},{"$f":"H400","v":9}]
[]
["التاريخ","العميل","الوارد",null,"الصادر",null,"الرصيد"]
[null,null,"كرتون","حبة","كرتون","حبة"]
["2024-02-03","لي هيتاشي اسود",1,3,null,null,"0",0]
["2024-02-03","لي هيتاشي اسود",1,3,null,null,{"$f":"(G5-E6+C6)+INT((H5-F6+D6)/$B$1)","v":1},{"$f":"MOD((H5-F6+D6),$B$1)","v":3}]
["2024-02-03","لي هيتاشي اسود",1,3,null,null,{"$f":"(G6-E7+C7)+INT((H6-F7+D7)/$B$1)","v":2},{"$f":"MOD((H6-F7+D7),$B$1)","v":6}]
["2024-02-03","لي هيتاشي اسود",1,3,null,null,3,9]
[null,null,null,null,null,null,3,9]
[null,null,null,null,null,null,3,9]
[null,null,null,null,null,null,3,9]
[null,null,null,null,null,null,3,9]
[null,null,null,null,null,null,3,9]
[null,null,null,null,null,null,3,9]
[null,null,null,null,null,null,3,9]
[null,null,null,null,null,null,3,9]
[null,null,null,null,null,null,3,9]
[null,null,null,null,null,null,3,9]
[null,null,null,null,null,null,3,9]
[null,null,null,null,null,null,3,9]
[null,null,null,null,null,null,3,9]
[null,null,null,null,null,null,3,9]
[null,null,null,null,null,null,3,9]
[null,null,null,null,null,null,3,9]
[null,null,null,null,null,null,3,9]
[null,null,null,null,null,null,3,9]
[null,null,null,null,null,null,3,9]
[null,null,null,null,null,null,3,9]
[null,null,null,null,null,null,3,9]
[null,null,null,null,null,null,3,9]
[null,null,null,null,null,null,3,9]
[null,null,null,null,null,null,3,9]
[null,null,null,null,null,null,3,9]
[null,null,null,null,null,null,3,9]
[null,null,null,null,null,null,3,9]
[null,null,null,null,null,null,3,9]
[null,null,null,null,null,null,3,9]
[null,null,null,null,null,null,3,9]
[null,null,null,null,null,null,3,9]
[null,null,null,null,null,null,3,9]
[null,null,null,null,null,null,3,9]
[null,null,null,null,null,null,3,9]
[null,null,null,null,null,null,3,9]
[null,null,null,null,null,null,3,9]
[null,null,null,null,null,null,3,9]
[null,null,null,null,null,null,3,9]
[null,null,null,null,null,null,3,9]
[null,null,null,null,null,null,3,9]
[null,null,null,null,null,null,3,9]
[null,null,null,null,null,null,3,9]
[null,null,null,null,null,null,3,9]
[null,null,null,null,null,null,3,9]
[null,null,null,null,null,null,3,9]
[null,null,null,null,null,null,3,9]
[null,null,null,null,null,null,3,9]
[null,null,null,null,null,null,3,9]
[null,null,null,null,null,null,3,9]
[null,null,null,null,null,null,3,9]
[null,null,null,null,null,null,3,9]
[null,null,null,null,null,null,3,9]
[null,null,null,null,null,null,3,9]
[null,null,null,null,null,null,3,9]
[null,null,null,null,null,null,3,9]
[null,null,null,null,null,null,3,9]
[null,null,null,null,null,null,3,9]
[null,null,null,null,null,null,3,9]
[null,null,null,null,null,null,3,9]
[null,null,null,null,null,null,3,9]
[null,null,null,null,null,null,3,9]
[null,null,null,null,null,null,3,9]
[null,null,null,null,null,null,{"$f":"(G70-E71+C71)+INT((H70-F71+D71)/$B$1)","v":3},{"$f":"MOD((H70-F71+D71),$B$1)","v":9}]
[null,null,null,null,null,null,3,9]
[null,null,null,null,null,null,3,9]
[null,null,null,null,null,null,3,9]
[null,null,null,null,null,null,3,9]
[null,null,null,null,null,null,3,9]
[null,null,null,null,null,null,3,9]
[null,null,null,null,null,null,3,9]
[null,null,null,null,null,null,3,9]
[null,null,null,null,null,null,3,9]
[null,null,null,null,null,null,3,9]
[null,null,null,null,null,null,3,9]
[null,null,null,null,null,null,3,9]
[null,null,null,null,null,null,3,9]
[null,null,null,null,null,null,3,9]
[null,null,null,null,null,null,3,9]
[null,null,null,null,null,null,3,9]
[null,null,null,null,null,null,3,9]
[null,null,null,null,null,null,3,9]
[null,null,null,null,null,null,3,9]
[null,null,null,null,null,null,3,9]
[null,null,null,null,null,null,3,9]
[null,null,null,null,null,null,3,9]
[null,null,null,null,null,null,3,9]
[null,null,null,null,null,null,3,9]
[null,null,null,null,null,null,3,9]
[null,null,null,null,null,null,3,9]
[null,null,null,null,null,null,3,9]
[null,null,null,null,null,null,3,9]
[null,null,null,null,null,null,3,9]
[null,null,null,null,null,null,3,9]
[null,null,null,null,null,null,3,9]
[null,null,null,null,null,null,3,9]
[null,null,null,null,null,null,3,9]
[null,null,null,null,null,null,3,9]
[null,null,null,null,null,null,3,9]
[null,null,null,null,null,null,3,9]
[null,null,null,null,null,null,3,9]
[null,null,null,null,null,null,3,9]
[null,null,null,null,null,null,3,9]
[null,null,null,null,null,null,3,9]
[null,null,null,null,null,null,3,9]
[null,null,null,null,null,null,3,9]
[null,null,null,null,null,null,3,9]
[null,null,null,null,null,null,3,9]
[null,null,null,null,null,null,3,9]
[null,null,null,null,null,null,3,9]
[null,null,null,null,null,null,3,9]
[null,null,null,null,null,null,3,9]
[null,null,null,null,null,null,3,9]
[null,null,null,null,null,null,3,9]
[null,null,null,null,null,null,3,9]
[null,null,null,null,null,null,3,9]
[null,null,null,null,null,null,3,9]
[null,null,null,null,null,null,3,9]
[null,null,null,null,null,null,3,9]
[null,null,null,null,null,null,3,9]
[null,null,null,null,null,null,3,9]
[null,null,null,null,null,null,3,9]
[null,null,null,null,null,null,3,9]
[null,null,null,null,null,null,3,9]
[null,null,null,null,null,null,3,9]
[null,null,null,null,null,null,3,9]
[null,null,null,null,null,null,3,9]
[null,null,null,null,null,null,{"$f":"(G134-E135+C135)+INT((H134-F135+D135)/$B$1)","v":3},{"$f":"MOD((H134-F135+D135),$B$1)","v":9}]
[null,null,null,null,null,null,3,9]
[null,null,null,null,null,null,3,9]
[null,null,null,null,null,null,3,9]
[null,null,null,null,null,null,3,9]
[null,null,null,null,null,null,3,9]
[null,null,null,null,null,null,3,9]
[null,null,null,null,null,null,3,9]
[null,null,null,null,null,null,3,9]
[null,null,null,null,null,null,3,9]
[null,null,null,null,null,null,3,9]
[null,null,null,null,null,null,3,9]
[null,null,null,null,null,null,3,9]
[null,null,null,null,null,null,3,9]
[null,null,null,null,null,null,3,9]
[null,null,null,null,null,null,3,9]
[null,null,null,null,null,null,3,9]
[null,null,null,null,null,null,3,9]
[null,null,null,null,null,null,3,9]
[null,null,null,null,null,null,3,9]
[null,null,null,null,null,null,3,9]
[null,null,null,null,null,null,3,9]
[null,null,null,null,null,null,3,9]
[null,null,null,null,null,null,3,9]
[null,null,null,null,null,null,3,9]
[null,null,null,null,null,null,3,9]
[null,null,null,null,null,null,3,9]
[null,null,null,null,null,null,3,9]
[null,null,null,null,null,null,3,9]
[null,null,null,null,null,null,3,9]
[null,null,null,null,null,null,3,9]
[null,null,null,null,null,null,3,9]
[null,null,null,null,null,null,3,9]
[null,null,null,null,null,null,3,9]
[null,null,null,null,null,null,3,9]
[null,null,null,null,null,null,3,9]
[null,null,null,null,null,null,3,9]
[null,null,null,null,null,null,3,9]
[null,null,null,null,null,null,3,9]
[null,null,null,null,null,null,3,9]
[null,null,null,null,null,null,3,9]
[null,null,null,null,null,null,3,9]
[null,null,null,null,null,null,3,9]
[null,null,null,null,null,null,3,9]
[null,null,null,null,null,null,3,9]
[null,null,null,null,null,null,3,9]
[null,null,null,null,null,null,3,9]
[null,null,null,null,null,null,3,9]
[null,null,null,null,null,null,3,9]
[null,null,null,null,null,null,3,9]
[null,null,null,null,null,null,3,9]
[null,null,null,null,null,null,3,9]
[null,null,null,null,null,null,3,9]
[null,null,null,null,null,null,3,9]
[null,null,null,null,null,null,3,9]
[null,null,null,null,null,null,3,9]
[null,null,null,null,null,null,3,9]
[null,null,null,null,null,null,3,9]
[null,null,null,null,null,null,3,9]
[null,null,null,null,null,null,3,9]
[null,null,null,null,null,null,3,9]
[null,null,null,null,null,null,3,9]
[null,null,null,null,null,null,3,9]
[null,null,null,null,null,null,3,9]
[null,null,null,null,null,null,{"$f":"(G198-E199+C199)+INT((H198-F199+D199)/$B$1)","v":3},{"$f":"MOD((H198-F199+D199),$B$1)","v":9}]
[null,null,null,null,null,null,3,9]
[null,null,null,null,null,null,3,9]
[null,null,null,null,null,null,3,9]
[null,null,null,null,null,null,3,9]
[null,null,null,null,null,null,3,9]
[null,null,null,null,null,null,3,9]
[null,null,null,null,null,null,3,9]
[null,null,null,null,null,null,3,9]
[null,null,null,null,null,null,3,9]
[null,null,null,null,null,null,3,9]
[null,null,null,null,null,null,3,9]
[null,null,null,null,null,null,3,9]
[null,null,null,null,null,null,3,9]
[null,null,null,null,null,null,3,9]
[null,null,null,null,null,null,3,9]
[null,null,null,null,null,null,3,9]
[null,null,null,null,null,null,3,9]
[null,null,null,null,null,null,3,9]
[null,null,null,null,null,null,3,9]
[null,null,null,null,null,null,3,9]
[null,null,null,null,null,null,3,9]
[null,null,null,null,null,null,3,9]
[null,null,null,null,null,null,3,9]
[null,null,null,null,null,null,3,9]
[null,null,null,null,null,null,3,9]
[null,null,null,null,null,null,3,9]
[null,null,null,null,null,null,3,9]
[null,null,null,null,null,null,3,9]
[null,null,null,null,null,null,3,9]
[null,null,null,null,null,null,3,9]
[null,null,null,null,null,null,3,9]
[null,null,null,null,null,null,3,9]
[null,null,null,null,null,null,3,9]
[null,null,null,null,null,null,3,9]
[null,null,null,null,null,null,3,9]
[null,null,null,null,null,null,3,9]
[null,null,null,null,null,null,3,9]
[null,null,null,null,null,null,3,9]
[null,null,null,null,null,null,3,9]
[null,null,null,null,null,null,3,9]
[null,null,null,null,null,null,3,9]
[null,null,null,null,null,null,3,9]
[null,null,null,null,null,null,3,9]
[null,null,null,null,null,null,3,9]
[null,null,null,null,null,null,3,9]
[null,null,null,null,null,null,3,9]
[null,null,null,null,null,null,3,9]
[null,null,null,null,null,null,3,9]
[null,null,null,null,null,null,3,9]
[null,null,null,null,null,null,3,9]
[null,null,null,null,null,null,3,9]
[null,null,null,null,null,null,3,9]
[null,null,null,null,null,null,3,9]
[null,null,null,null,null,null,3,9]
[null,null,null,null,null,null,3,9]
[null,null,null,null,null,null,3,9]
[null,null,null,null,null,null,3,9]
[null,null,null,null,null,null,3,9]
[null,null,null,null,null,null,3,9]
[null,null,null,null,null,null,3,9]
[null,null,null,null,null,null,3,9]
[null,null,null,null,null,null,3,9]
[null,null,null,null,null,null,3,9]
[null,null,null,null,null,null,{"$f":"(G262-E263+C263)+INT((H262-F263+D263)/$B$1)","v":3},{"$f":"MOD((H262-F263+D263),$B$1)","v":9}]
[null,null,null,null,null,null,3,9]
[null,null,null,null,null,null,3,9]
[null,null,null,null,null,null,3,9]
[null,null,null,null,null,null,3,9]
[null,null,null,null,null,null,3,9]
[null,null,null,null,null,null,3,9]
[null,null,null,null,null,null,3,9]
[null,null,null,null,null,null,3,9]
[null,null,null,null,null,null,3,9]
[null,null,null,null,null,null,3,9]
[null,null,null,null,null,null,3,9]
[null,null,null,null,null,null,3,9]
[null,null,null,null,null,null,3,9]
[null,null,null,null,null,null,3,9]
[null,null,null,null,null,null,3,9]
[null,null,null,null,null,null,3,9]
[null,null,null,null,null,null,3,9]
[null,null,null,null,null,null,3,9]
[null,null,null,null,null,null,3,9]
[null,null,null,null,null,null,3,9]
[null,null,null,null,null,null,3,9]
[null,null,null,null,null,null,3,9]
[null,null,null,null,null,null,3,9]
[null,null,null,null,null,null,3,9]
[null,null,null,null,null,null,3,9]
[null,null,null,null,null,null,3,9]
[null,null,null,null,null,null,3,9]
[null,null,null,null,null,null,3,9]
[null,null,null,null,null,null,3,9]
[null,null,null,null,null,null,3,9]
[null,null,null,null,null,null,3,9]
[null,null,null,null,null,null,3,9]
[null,null,null,null,null,null,3,9]
[null,null,null,null,null,null,3,9]
[null,null,null,null,null,null,3,9]
[null,null,null,null,null,null,3,9]
[null,null,null,null,null,null,3,9]
[null,null,null,null,null,null,3,9]
[null,null,null,null,null,null,3,9]
[null,null,null,null,null,null,3,9]
[null,null,null,null,null,null,3,9]
[null,null,null,null,null,null,3,9]
[null,null,null,null,null,null,3,9]
[null,null,null,null,null,null,3,9]
[null,null,null,null,null,null,3,9]
[null,null,null,null,null,null,3,9]
[null,null,null,null,null,null,3,9]
[null,null,null,null,null,null,3,9]
[null,null,null,null,null,null,3,9]
[null,null,null,null,null,null,3,9]
[null,null,null,null,null,null,3,9]
[null,null,null,null,null,null,3,9]
[null,null,null,null,null,null,3,9]
[null,null,null,null,null,null,3,9]
[null,null,null,null,null,null,3,9]
[null,null,null,null,null,null,3,9]
[null,null,null,null,null,null,3,9]
[null,null,null,null,null,null,3,9]
[null,null,null,null,null,null,3,9]
[null,null,null,null,null,null,3,9]
[null,null,null,null,null,null,3,9]
[null,null,null,null,null,null,3,9]
[null,null,null,null,null,null,3,9]
[null,null,null,null,null,null,{"$f":"(G326-E327+C327)+INT((H326-F327+D327)/$B$1)","v":3},{"$f":"MOD((H326-F327+D327),$B$1)","v":9}]
[null,null,null,null,null,null,3,9]
[null,null,null,null,null,null,3,9]
[null,null,null,null,null,null,3,9]
[null,null,null,null,null,null,3,9]
[null,null,null,null,null,null,3,9]
[null,null,null,null,null,null,3,9]
[null,null,null,null,null,null,3,9]
[null,null,null,null,null,null,3,9]
[null,null,null,null,null,null,3,9]
[null,null,null,null,null,null,3,9]
[null,null,null,null,null,null,3,9]
[null,null,null,null,null,null,3,9]
[null,null,null,null,null,null,3,9]
[null,null,null,null,null,null,3,9]
[null,null,null,null,null,null,3,9]
[null,null,null,null,null,null,3,9]
[null,null,null,null,null,null,3,9]
[null,null,null,null,null,null,3,9]
[null,null,null,null,null,null,3,9]
[null,null,null,null,null,null,3,9]
[null,null,null,null,null,null,3,9]
[null,null,null,null,null,null,3,9]
[null,null,null,null,null,null,3,9]
[null,null,null,null,null,null,3,9]
[null,null,null,null,null,null,3,9]
[null,null,null,null,null,null,3,9]
[null,null,null,null,null,null,3,9]
[null,null,null,null,null,null,3,9]
[null,null,null,null,null,null,3,9]
[null,null,null,null,null,null,3,9]
[null,null,null,null,null,null,3,9]
[null,null,null,null,null,null,3,9]
[null,null,null,null,null,null,3,9]
[null,null,null,null,null,null,3,9]
[null,null,null,null,null,null,3,9]
[null,null,null,null,null,null,3,9]
[null,null,null,null,null,null,3,9]
[null,null,null,null,null,null,3,9]
[null,null,null,null,null,null,3,9]
[null,null,null,null,null,null,3,9]
[null,null,null,null,null,null,3,9]
[null,null,null,null,null,null,3,9]
[null,null,null,null,null,null,3,9]
[null,null,null,null,null,null,3,9]
[null,null,null,null,null,null,3,9]
[null,null,null,null,null,null,3,9]
[null,null,null,null,null,null,3,9]
[null,null,null,null,null,null,3,9]
[null,null,null,null,null,null,3,9]
[null,null,null,null,null,null,3,9]
[null,null,null,null,null,null,3,9]
[null,null,null,null,null,null,3,9]
[null,null,null,null,null,null,3,9]
[null,null,null,null,null,null,3,9]
[null,null,null,null,null,null,3,9]
[null,null,null,null,null,null,3,9]
[null,null,null,null,null,null,3,9]
[null,null,null,null,null,null,3,9]
[null,null,null,null,null,null,3,9]
[null,null,null,null,null,null,3,9]
[null,null,null,null,null,null,3,9]
[null,null,null,null,null,null,3,9]
[null,null,null,null,null,null,3,9]
[null,null,null,null,null,null,{"$f":"(G390-E391+C391)+INT((H390-F391+D391)/$B$1)","v":3},{"$f":"MOD((H390-F391+D391),$B$1)","v":9}]
[null,null,null,null,null,null,3,9]
[null,null,null,null,null,null,3,9]
[null,null,null,null,null,null,3,9]
[null,null,null,null,null,null,3,9]
[null,null,null,null,null,null,3,9]
[null,null,null,null,null,null,3,9]
[null,null,null,null,null,null,3,9]
[null,null,null,null,null,null,3,9]
[null,null,null,null,null,null,3,9]